{"text_format":"1","workbook":"xlsx","n_sheets":3,"sheets":["Hoja1","FASAD3","Programas"],"not_rendered":{"charts":0,"images":7,"macros":1,"external_links":0,"defined_names":3,"comments":2,"pivot_tables":0},"unopened":[],"bounds":{"document_bytes":16777216,"sheet_cells":100000,"rows_first":2000,"rows_last":500,"rows_between":2000,"halvings":0,"cell_chars":16384,"cell_head_chars":4096},"cells_cut":0,"cells_raw":0,"read":"whole","date_system":"1900"}

{"sheet":"Hoja1","index":0,"n_rows":9,"n_cols":6,"rows_kept":9,"cut":false,"hidden":false,"merged":[[6,5,7,10],[8,5,8,10]]}
[]
[]
[]
[]
[]
[]
[null,null,null,null,null,"REGISTRO DE MATRÍCULA -  POSGRADOS"]
[]
[null,null,null,null,null,"Facultad de Derecho"]

{"sheet":"FASAD3","index":1,"n_rows":43,"n_cols":17,"rows_kept":43,"cut":false,"hidden":true,"merged":[[6,2,6,21],[7,3,7,10],[26,5,26,15],[25,16,25,17],[26,18,26,21],[23,2,23,4],[22,10,22,12],[23,10,23,12],[26,2,26,4],[24,18,24,21],[25,18,25,21],[22,13,22,21],[22,2,22,4],[16,2,16,4],[22,5,22,9],[7,11,7,16],[1,18,1,21],[13,11,13,13],[2,5,2,20],[3,5,3,20],[16,5,16,8],[11,2,11,21],[12,2,12,21],[13,9,13,10],[14,11,14,21],[15,14,15,16],[13,14,13,16],[13,17,13,21],[13,2,13,4],[8,3,8,10],[8,11,8,15],[5,2,5,21],[38,6,38,16],[32,10,32,12],[31,2,31,4],[32,16,32,17],[37,17,37,20],[31,5,31,21],[32,18,32,21],[32,2,32,4],[32,5,32,9],[30,10,30,12],[21,10,21,12],[21,18,21,21],[15,2,15,4],[21,2,21,4],[24,2,24,4],[30,5,30,9],[28,2,28,21],[30,2,30,4],[30,18,30,21],[30,13,30,15],[30,16,30,17],[20,18,20,21],[21,5,21,9],[21,13,21,15],[20,5,20,15],[42,2,42,21],[43,13,43,21],[15,5,15,13],[36,2,36,21],[32,13,32,15],[34,2,34,21],[25,2,25,4],[15,17,15,21],[24,16,24,17],[24,5,24,15],[18,2,18,21],[20,2,20,4],[25,5,25,15],[23,13,23,21],[21,16,21,17],[20,16,20,17],[23,5,23,9],[13,5,13,8],[14,2,14,4],[14,9,14,10],[14,5,14,8]]}
[]
[]
[null,null,null,null,null,"REGISTRO DE MATRÍCULA -  POSGRADOS"]
[null,null,null,null,null,"Facultad de Derecho"]
[]
[null,null,"DECLARACIÓN DE CONOCIMIENTO Y ACEPTACIÓN DE MATRÍCULA"]
[null,null,"La Universidad Externado de Colombia realizará el tratamiento de sus datos personales con la exclusiva finalidad de cumplir con su objeto social de conformidad con la Ley, y de adelantar distintos procesos internos tales como: actividades académicas, prestación de servicios, facturación y cartera, entre otros. \n\nCon la suscripción del registro de matrícula se entiende que adquiere Usted la calidad de estudiante y conforme a esta, autoriza el tratamiento de sus datos personales por parte de la Universidad o de terceros contratados por esta para el cumplimiento de su objeto.\n\nSe entienden como datos sujetos a tratamiento, aquellos que con ocasión de su condición de estudiante se requieran o se generen conforme a las normas del reglamento orgánico interno y en particular, el tratamiento de su imagen con fines de seguridad e identificación y de llegar a requerirse, médicos cuando se necesite la refrendación de incapacidades. \n\nAsí mismo, autoriza a ser informado y/o notificado de cualquier tipo de decisión con la remisión de la misma al correo institucional asignado por la Universidad.\n\nPuede consultar las políticas de privacidad de la Universidad Externado de Colombia en el sitio web: www.uexternado.edu.co/politicasdeprivacidad. "]
[null,null,null,"Acepto los términos anteriormente descritos:"]
[null,null,null,"Acepto los términos anteriormente descritos:"]
[]
[]
[null,null,"AVISO IMPORTANTE"]
[null,null,"• La legalización de la matrícula es un acto formal que debe adelantarse ante la Secretaría Académica de la facultad, previo cumplimiento de los requisitos establecidos reglamentariamente, y es indispensable para adquirir la calidad de estudiante. El plazo máximo para realizar o legalizar la matrícula académica es hasta la segunda semana para los programas de jornada continúa y diaria, hasta la segunda visita para los programas organizados por visitas mensuales y hasta la cuarta sesión para los programas organizados por visitas quincenales; pasadas estas oportunidades, la Universidad no reconocerá la calidad de estudiante al aspirante admitido.\n• Una vez legalice su matrícula se le podrá hacer entrega del carné estudiantil y se le efectuará la asignación del horario de clases correspondiente.\n• Por favor envíe únicamente un correo electrónico con todos los documentos anexos y la foto digital para agilizar la expedición de su carné, la cual debe estar identificada con su número de documento de identidad.\n• Recuerde que preferiblemente debe enviar este formato diligenciado con los documentos requeridos así:\nBogotá: al correo dermatricula.posgrado@uexternado.edu.co; el asunto del correo debe ser el nombre del programa y su nombre completo, iniciando con sus apellidos.\nFuera de Bogotá: al correo de la coordinación de la ciudad; el asunto del correo debe ser el nombre del programa y su nombre completo, iniciando con sus apellidos. \n\nSe entienden como NO presentados los formularios con información incompleta y sin la totalidad de los documentos anexos. \n"]
[null,null,"Fecha*",null,null,null,null,null,null,"Modalidad*",null,null,null,null,"Nivel*"]
[null,null,"Ciudad del Programa*",null,null,null,null,null,null,"Programa*"]
[null,null,"Énfasis y modalidad\n(Aplica para algunas maestrías)",null,null,null,null,null,null,null,null,null,null,null,"Esta matrícula se extiende por el periodo de"]
[null,null,"Ciudad+nivel oculto"]
[]
[null,null,"A. DATOS GENERALES"]
[]
[null,null,"Nombre completo*",null,null,null,null,null,null,null,null,null,null,null,null,null,"Género*"]
[null,null,"Clase de documento*",null,null,null,null,null,null,null,"Número de Documento*",null,null,null,null,null,"Lugar de expedición*"]
[null,null,"Ciudad de residencia*",null,null,null,null,null,null,null,"Dirección de residencia"]
[null,null,"Teléfono de residencia",null,null,null,null,null,null,null,"Empresa donde labora"]
[null,null,"Cargo donde labora",null,null,null,null,null,null,null,null,null,null,null,null,null,"Teléfono donde labora"]
[null,null,"Dirección donde labora",null,null,null,null,null,null,null,null,null,null,null,null,null,"Celular*"]
[null,null,"Correo electrónico*"]
[]
[null,null,"B. INFORMACIÓN PROFESIONAL"]
[]
[null,null,"Título obtenido*",null,null,null,null,null,null,null,"Registro folio*",null,null,null,null,null,"Libro*"]
[null,null,"Institución*"]
[null,null,"Ciudad de institución*",null,null,null,null,null,null,null,"Año finalización*",null,null,null,null,null,"Tarjeta profesional*"]
[null,null,"* campos de obligatorio diligenciamiento "]
[null,null,"C. REQUISITOS"]
[]
[null,null,"Apreciado estudiante, favor adjuntar a este formulario los siguientes documentos escaneados"]
[]
[]
[]
[]
[]
[null,null,"** Foto digital tipo documento con las siguientes especificaciones: fondo blanco, tamaño 3X4, formato JPG y resolución 600 DPI"]

{"sheet":"Programas","index":2,"n_rows":59,"n_cols":80,"rows_kept":59,"cut":false,"hidden":true,"merged":[[5,77,5,78],[6,77,6,78],[3,77,3,78],[3,54,3,56],[5,54,5,56],[6,54,6,56],[3,74,3,75],[6,74,6,75],[5,74,5,75],[3,58,3,60],[6,66,6,68],[3,70,3,72],[5,70,5,72],[6,70,6,72],[5,58,5,60],[6,58,6,60],[6,5,6,6],[6,2,6,3],[5,5,5,6],[5,2,5,3],[5,8,5,9],[6,8,6,9],[5,26,5,27],[6,26,6,27],[5,11,5,12],[6,11,6,12],[5,14,5,15],[6,14,6,15],[5,17,5,18],[6,17,6,18],[5,38,5,39],[6,38,6,39],[3,2,3,39],[5,42,5,44],[3,42,3,44],[6,42,6,44],[5,29,5,30],[5,32,5,33],[6,29,6,30],[5,35,5,36],[6,35,6,36],[5,20,5,21],[6,20,6,21],[5,23,5,24],[6,23,6,24],[6,32,6,33],[3,46,3,48],[5,46,5,48],[6,46,6,48],[5,50,5,52],[6,50,6,52],[3,50,3,52],[3,62,3,64],[5,62,5,64],[6,62,6,64],[3,66,3,68],[5,66,5,68]]}
[]
[null,null,null,"Actualizado según listado enviado el",null,"2019-06-12"]
[]
[null,null,"ESPECIALIZACIÓN",null,null,null,null,null,null,null,null,null,null,null,null,null,null,null,null,null,null,null,null,null,null,null,null,null,null,null,null,null,null,null,null,null,null,null,null,null,null,null,"MAESTRÍA",null,null,null,"MAESTRÍA",null,null,null,"MAESTRÍA_EN_DERECHO",null,null,null,"MAESTRÍA_EN_DERECHO_DEL_ESTADO",null,null,null,"MAESTRÍA_EN_DERECHO_ECONÓMICO",null,null,null,"MAESTRÍA_EN_DERECHO_INTERNACIONAL",null,null,null,"MAESTRÍA_EN_JUSTICIA_Y_TUTELA_DE_LOS_DERECHOS",null,null,null,"MAESTRÍA_EN_DERECHO_PRIVADO_PERSONA_Y_SOCIEDAD",null,null,null,"DOCTORADO",null,null,"ESPECIALIZACIÓN"]
[]
[null,null,{"$f":"CONCATENATE($C$4,C7)","v":"ESPECIALIZACIÓNBOGOTÁ_D.C."},null,null,{"$f":"CONCATENATE($C$4,F7)","v":"ESPECIALIZACIÓNBARRANQUILLA"},null,null,{"$f":"CONCATENATE($C$4,I7)","v":"ESPECIALIZACIÓNBUCARAMANGA"},null,null,{"$f":"CONCATENATE($C$4,L7)","v":"ESPECIALIZACIÓNCALI"},null,null,{"$f":"CONCATENATE($C$4,O7)","v":"ESPECIALIZACIÓNCARTAGENA"},null,null,{"$f":"CONCATENATE($C$4,R7)","v":"ESPECIALIZACIÓNCÚCUTA"},null,null,{"$f":"CONCATENATE($C$4,U7)","v":"ESPECIALIZACIÓNMEDELLÍN"},null,null,{"$f":"CONCATENATE($C$4,X7)","v":"ESPECIALIZACIÓNPASTO"},null,null,{"$f":"CONCATENATE($C$4,AA7)","v":"ESPECIALIZACIÓNPEREIRA"},null,null,{"$f":"CONCATENATE($C$4,AD7)","v":"ESPECIALIZACIÓNTUNJA"},null,null,{"$f":"CONCATENATE($C$4,AG7)","v":"ESPECIALIZACIÓNVALLEDUPAR"},null,null,{"$f":"CONCATENATE($C$4,AJ7)","v":"ESPECIALIZACIÓNVILLAVICENCIO"},null,null,{"$f":"CONCATENATE($C$4,AM7)","v":"ESPECIALIZACIÓN"},null,null,null,{"$f":"CONCATENATE(AQ4,AQ7)","v":"MAESTRÍABOGOTÁ_D.C."},null,null,null,{"$f":"CONCATENATE(AU4,AU7)","v":"MAESTRÍABOGOTÁ_D.C.Virtual"},null,null,null,{"$f":"CONCATENATE(AY4,AZ8)","v":"MAESTRÍA_EN_DERECHOÉnfasis"},null,null,null,{"$f":"CONCATENATE(BC4,BD8)","v":"MAESTRÍA_EN_DERECHO_DEL_ESTADOÉnfasis"},null,null,null,{"$f":"CONCATENATE(BG4,BH8)","v":"MAESTRÍA_EN_DERECHO_ECONÓMICOÉnfasis"},null,null,null,{"$f":"CONCATENATE(BK4,BL8)","v":"MAESTRÍA_EN_DERECHO_INTERNACIONALÉnfasis"},null,null,null,{"$f":"CONCATENATE(BO4,BP8)","v":"MAESTRÍA_EN_JUSTICIA_Y_TUTELA_DE_LOS_DERECHOSÉnfasis"},null,null,null,{"$f":"CONCATENATE(BS4,BT8)","v":"MAESTRÍA_EN_DERECHO_PRIVADO_PERSONA_Y_SOCIEDADÉnfasis"},null,null,null,{"$f":"CONCATENATE(BW4,BW7)","v":"DOCTORADOBOGOTÁ_D.C."},null,null,{"$f":"CONCATENATE($C$4,BZ7)","v":"ESPECIALIZACIÓN"}]
[null,null,"BOGOTÁ_D.C.",null,null,"BARRANQUILLA",null,null,"BUCARAMANGA",null,null,"CALI",null,null,"CARTAGENA",null,null,"CÚCUTA",null,null,"MEDELLÍN",null,null,"PASTO",null,null,"PEREIRA",null,null,"TUNJA",null,null,"VALLEDUPAR",null,null,"VILLAVICENCIO",null,null,null,null,null,null,"BOGOTÁ_D.C.",null,null,null,"BOGOTÁ_D.C.Virtual",null,null,null,"BOGOTÁ_D.C.",null,null,null,"BOGOTÁ_D.C.",null,null,null,"BOGOTÁ_D.C.",null,null,null,"BOGOTÁ_D.C.",null,null,null,"BOGOTÁ_D.C.",null,null,null,"BOGOTÁ_D.C.",null,null,null,"BOGOTÁ_D.C.",null,null,null,null,"Seleccione…"]
[null,null,"Snies","Programa",null,null,"Programa",null,"Snies","Programa",null,"Snies","Programa",null,"Snies","Programa",null,"Snies","Programa",null,"Snies","Programa",null,"Snies","Programa",null,"Snies","Programa",null,"Snies","Programa",null,"Snies","Programa",null,"Snies","Programa",null,"Snies","Programa",null,null,"Snies","Programa","Modalidad",null,"Snies","Programa","Modalidad",null,"Snies","Énfasis","Modalidad",null,"Snies","Énfasis","Modalidad",null,"Snies","Énfasis","Modalidad",null,"Snies","Énfasis","Modalidad",null,"Snies","Énfasis","Modalidad",null,"Snies","Énfasis","Modalidad",null,"Snies","Programa",null,"Snies","Programa","Cédula de Ciudadanía"]
[null,null,1126,"ESPECIALIZACIÓN EN CIENCIAS PENALES Y CRIMINOLÓGICAS",null,15866,"ESPECIALIZACIÓN EN CONTRATACIÓN ESTATAL",null,17839,"ESPECIALIZACION EN CONTRATACION ESTATAL",null,7054,"ESPECIALIZACIÓN EN CONTRATACIÓN ESTATAL",null,52417,"ESPECIALIZACIÓN EN CIENCIAS PENALES Y CRIMINOLÓGICAS",null,102556,"ESPECIALIZACIÓN EN DERECHO ADMINISTRATIVO",null,51602,"ESPECIALIZACIÓN EN CONTRATACIÓN ESTATAL",null,51857,"ESPECIALIZACIÓN EN CIENCIAS PENALES Y CRIMINOLÓGICAS",null,53218,"ESPECIALIZACIÓN EN RESPONSABILIDAD Y DAÑO RESARCIBLE",null,53216,"ESPECIALIZACIÓN EN CONTRATACIÓN ESTATAL",null,105983,"ESPECIALIZACIÓN EN DERECHO CONTENCIOSO ADMINISTRATIVO",null,102117,"ESPECIALIZACIÓN EN DERECHO CONSTITUCIONAL",null,null,null,null,null,51846,"MAESTRÍA EN DERECHO COMERCIAL",null,null,102529,"MAESTRÍA VIRTUAL EN TRIBUTACIÓN INTERNACIONAL, COMERCIO EXTERIOR Y ADUANAS",null,null,null,null,null,null,104735,"Derecho Administrativo",null,null,104699,"Teoría del Derecho Económico y de la Regulación",null,null,104802,"Derecho Internacional Público",null,null,104800,"Ciencias Penales y Criminológicas",null,null,104801,"Propiedad Intelectual",null,null,11706,"DOCTORADO EN DERECHO",null,null,null,"Cédula de Extranjería"]
[null,null,3920,"ESPECIALIZACIÓN EN CONTRATACIÓN ESTATAL",null,21532,"ESPECIALIZACIÓN EN DERECHO ADMINISTRATIVO",null,21533,"ESPECIALIZACIÓN EN DERECHO ADMINISTRATIVO",null,103387,"ESPECIALIZACIÓN EN DERECHO ADMINISTRATIVO",null,21535,"ESPECIALIZACIÓN EN DERECHO ADUANERO Y COMERCIO EXTERIOR",null,102112,"ESPECIALIZACIÓN EN DERECHO CONSTITUCIONAL    ",null,101369,"ESPECIALIZACIÓN EN CONTRATACIÓN INTERNACIONAL",null,101371,"ESPECIALIZACIÓN EN CONTRATACIÓN ESTATAL",null,null,null,null,53369,"ESPECIALIZACIÓN EN DERECHO ADMINISTRATIVO",null,null,null,null,102251,"ESPECIALIZACIÓN EN DERECHO PÚBLICO",null,null,null,null,null,104735,"MAESTRÍA_EN_DERECHO_DEL_ESTADO",null,null,null,null,null,null,null,null,null,null,104735,"Gobierno y Desarrollo de las Entidades Territoriales",null,null,104699,"Regulación Económica y Análisis Económico del Derecho",null,null,104802,"Derecho Internacional de los Negocios",null,null,104800,"Derecho Procesal",null,null,104801,"Responsabiliad Contractual y Extracontractual, Civil y del Estado",null,null,null,null,null,null,null,"Pasaporte"]
[null,null,21534,"ESPECIALIZACIÓN EN CONTRATACIÓN INTERNACIONAL",null,9342,"ESPECIALIZACIÓN EN DERECHO ADUANERO Y COMERCIO EXTERIOR",null,91353,"ESPECIALIZACIÓN EN DERECHO COMERCIAL",null,103028,"ESPECIALIZACIÓN EN DERECHO COMERCIAL",null,7221,"ESPECIALIZACIÓN EN DERECHO CONTENCIOSO ADMINISTRATIVO",null,103077,"ESPECIALIZACIÓN EN DERECHO PROCESAL CIVIL ",null,17841,"ESPECIALIZACIÓN EN DERECHO ADMINISTRATIVO",null,101448,"ESPECIALIZACIÓN EN DERECHO CONSTITUCIONAL",null,null,null,null,102487,"ESPECIALIZACIÓN EN DERECHO COMERCIAL",null,null,null,null,104812,"ESPECIALIZACIÓN EN GESTIÓN DE CIUDAD Y TERRITORIO",null,null,null,null,null,52567,"MAESTRÍA EN DERECHOS HUMANOS Y DEMOCRATIZACIÓN",null,null,null,null,null,null,null,null,null,null,104735,"Derecho Público",null,null,104699,"Servicios Públicos",null,null,null,null,null,null,104800,"Derecho del Trabajo",null,null,104801,"Derecho del Transporte, Logística e Infraestructura",null,null,null,null,null,null,null,"Tarjeta de identidad"]
[null,null,104373,"ESPECIALIZACIÓN EN CONTROL Y RESPONSABILIDAD FISCAL",null,103080,"ESPECIALIZACIÓN EN DERECHO COMERCIAL",null,51803,"ESPECIALIZACIÓN EN DERECHO DEL MEDIO AMBIENTE",null,102488,"ESPECIALIZACIÓN EN DERECHO CONSTITUCIONAL",null,14968,"ESPECIALIZACIÓN EN DERECHO MARÍTIMO",null,90976,"ESPECIALIZACIÓN EN DERECHO PROCESAL PENAL",null,106281,"ESPECIALIZACIÓN EN DERECHO COMERCIAL",null,53358,"ESPECIALIZACIÓN EN DERECHO CONTENCIOSO ADMINISTRATIVO",null,null,null,null,53215,"ESPECIALIZACIÓN EN DERECHO PROCESAL PENAL",null,null,null,null,null,null,null,null,null,null,null,102405,"MAESTRÍA EN DERECHO MÉDICO",null,null,null,null,null,null,null,null,null,null,104735,"Derecho de los Recursos Naturales",null,null,104699,"Derecho Bancario y Bursátil",null,null,null,null,null,null,104800,"Teoría Jurídica y Filosofía del Derecho",null,null,104801,"Contratación Contemporánea"]
[null,null,7695,"ESPECIALIZACIÓN EN DERECHO ADMINISTRATIVO",null,107607,"ESPECIALIZACIÓN EN DERECHO DE LA INFRAESTRUCTURA",null,52482,"ESPECIALIZACIÓN EN DERECHO DISCIPLINARIO",null,106183,"ESPECIALIZACIÓN EN DERECHO DEL MEDIO AMBIENTE",null,54164,"ESPECIALIZACIÓN EN DERECHO PROCESAL PENAL",null,105160,"ESPECIALIZACIÓN EN DERECHOS HUMANOS Y DERECHO INTERNACIONAL HUMANITARIO ",null,8347,"ESPECIALIZACIÓN EN DERECHO DE LOS NEGOCIOS",null,54202,"ESPECIALIZACIÓN EN DERECHO PROCESAL PENAL",null,null,null,null,null,null,null,null,null,null,null,null,null,null,null,null,null,104699,"MAESTRÍA_EN_DERECHO_ECONÓMICO",null,null,null,null,null,null,null,null,null,null,104735,"Regulación y Gestión de las Telecomunicaciones",null,null,104699,"Derecho Económico Internacional, Comercio, Transacciones e Inversión"]
[null,null,90800,"ESPECIALIZACIÓN EN DERECHO ADMINISTRATIVO LABORAL",null,51597,"ESPECIALIZACIÓN EN DERECHO DEL MEDIO AMBIENTE",null,53220,"ESPECIALIZACIÓN EN DERECHO LABORAL Y RELACIONES INDUSTRIALES",null,52364,"ESPECIALIZACIÓN EN DERECHO DISCIPLINARIO",null,7220,"ESPECIALIZACIÓN EN DERECHO PÚBLICO",null,null,null,null,10332,"ESPECIALIZACIÓN EN DERECHO DEL MEDIO AMBIENTE",null,null,null,null,null,null,null,null,null,null,null,null,null,null,null,null,null,null,null,null,103116,"MAESTRÍA EN GESTIÓN INTEGRAL DEL RIESGO",null,null,null,null,null,null,null,null,null,null,104735,"Regulación Minera, Petrolera y Energética"]
[null,null,6589,"ESPECIALIZACIÓN EN DERECHO ADUANERO Y COMERCIO EXTERIOR",null,51854,"ESPECIALIZACIÓN EN DERECHO DISCIPLINARIO",null,103079,"ESPECIALIZACIÓN EN DERECHO PROCESAL CIVIL ",null,104164,"ESPECIALIZACIÓN EN DERECHO LABORAL Y RELACIONES INDUSTRIALES",null,6022,"ESPECIALIZACIÓN EN GERENCIA DE IMPUESTOS",null,null,null,null,53222,"ESPECIALIZACIÓN EN DERECHO LABORAL Y RELACIONES INDUSTRIALES",null,null,null,null,null,null,null,null,null,null,null,null,null,null,null,null,null,null,null,null,103117,"MAESTRÍA EN INTEGRACIÓN Y GLOBALIZACIÓN",null,null,null,null,null,null,null,null,null,null,104735,"Derecho Tributario"]
[null,null,4341,"ESPECIALIZACIÓN EN DERECHO CONSTITUCIONAL",null,17832,"ESPECIALIZACIÓN EN DERECHO LABORAL Y RELACIONES INDUSTRIALES",null,51851,"ESPECIALIZACIÓN EN DERECHO PROCESAL PENAL",null,21530,"ESPECIALIZACIÓN EN DERECHO MARÍTIMO",null,104816,"ESPECIALIZACIÓN EN GESTIÓN DE CIUDAD Y TERRITORIO",null,null,null,null,53221,"ESPECIALIZACIÓN EN DERECHO PROCESAL CIVIL ",null,null,null,null,null,null,null,null,null,null,null,null,null,null,null,null,null,null,null,null,103115,"MAESTRÍA EN DERECHO INFORMÁTICO Y DE LAS NUEVAS TECNOLOGÍAS"]
[null,null,4189,"ESPECIALIZACIÓN EN DERECHO CONTENCIOSO ADMINISTRATIVO",null,101616,"ESPECIALIZACIÓN EN DERECHO MARÍTIMO",null,106280,"ESPECIALIZACIÓN EN DERECHO TRIBUTARIO",null,6233,"ESPECIALIZACIÓN EN DERECHO NOTARIAL Y REGISTRAL",null,null,null,null,null,null,null,52259,"ESPECIALIZACIÓN EN DERECHO TRIBUTARIO",null,null,null,null,null,null,null,null,null,null,null,null,null,null,null,null,null,null,null,null,104802,"MAESTRÍA_EN_DERECHO_INTERNACIONAL"]
[null,null,11311,"ESPECIALIZACIÓN EN DERECHO CONTRACTUAL Y RELACIONES JURÍDICO NEGOCIALES",null,53219,"ESPECIALIZACIÓN EN DERECHO PROCESAL CIVIL",null,106229,"ESPECIALIZACIÓN EN DERECHO TRIBUTARIO INTERNACIONAL",null,101547,"ESPECIALIZACIÓN EN DERECHO PROCESAL CIVIL ",null,null,null,null,null,null,null,53325,"ESPECIALIZACIÓN EN DERECHO TRIBUTARIO INTERNACIONAL",null,null,null,null,null,null,null,null,null,null,null,null,null,null,null,null,null,null,null,null,103262,"MAESTRÍA EN DERECHO CONSTITUCIONAL"]
[null,null,17844,"ESPECIALIZACIÓN EN DERECHO DE AGUAS",null,51860,"ESPECIALIZACIÓN EN DERECHO PÚBLICO",null,51805,"ESPECIALIZACIÓN EN RESPONSABILIDAD Y DAÑO RESARCIBLE",null,51862,"ESPECIALIZACIÓN EN DERECHO PÚBLICO",null,null,null,null,null,null,null,101367,"ESPECIALIZACIÓN EN DERECHOS HUMANOS Y DERECHO INTERNACIONAL HUMANITARIO",null,null,null,null,null,null,null,null,null,null,null,null,null,null,null,null,null,null,null,null,105879,"MAESTRÍA EN JUSTICIA TRANSICIONAL"]
[null,null,1121,"ESPECIALIZACIÓN EN DERECHO DE FAMILIA",null,52258,"ESPECIALIZACIÓN EN DERECHO TRIBUTARIO",null,null,null,null,105880,"ESPECIALIZACIÓN EN DERECHO TRIBUTARIO",null,null,null,null,null,null,null,103078,"ESPECIALIZACIÓN INTERNACIONAL EN DERECHO DEL TRANSPORTE",null,null,null,null,null,null,null,null,null,null,null,null,null,null,null,null,null,null,null,null,103506,"MAESTRÍA EN JUSTICIA TRANSICIONAL, DERECHOS HUMANOS Y CONFLICTO"]
[null,null,107605,"ESPECIALIZACIÓN EN DERECHO DE LA INFRAESTRUCTURA",null,105946,"ESPECIALIZACIÓN EN DERECHO TRIBUTARIO INTERNACIONAL",null,null,null,null,106078,"ESPECIALIZACIÓN EN DERECHO TRIBUTARIO INTERNACIONAL",null,null,null,null,null,null,null,null,null,null,null,null,null,null,null,null,null,null,null,null,null,null,null,null,null,null,null,null,null,104800,"MAESTRÍA_EN_JUSTICIA_Y_TUTELA_DE_LOS_DERECHOS "]
[null,null,11310,"ESPECIALIZACIÓN EN DERECHO DE LOS NEGOCIOS",null,53357,"ESPECIALIZACIÓN EN DERECHOS HUMANOS Y DERECHO INTERNACIONAL HUMANITARIO ",null,null,null,null,105178,"ESPECIALIZACIÓN EN NUEVAS TECNOLOGÍAS, INNOVACIÓN Y GESTIÓN DE CIUDADES",null,null,null,null,null,null,null,null,null,null,null,null,null,null,null,null,null,null,null,null,null,null,null,null,null,null,null,null,null,104801,"MAESTRÍA_EN_DERECHO_PRIVADO_PERSONA_Y_SOCIEDAD"]
[null,null,103388,"ESPECIALIZACIÓN EN DERECHO DE TIERRAS",null,null,null,null,null,null,null,null,null,null,null,null,null,null,null,null,null,null,null,null,null,null,null,null,null,null,null,null,null,null,null,null,null,null,null,null,null,null,107957,"MAESTRÍA EN DERECHO DEL TRABAJO, PROCESAL DEL TRABAJO Y SEGURIDAD SOCIAL"]
[null,null,4917,"ESPECIALIZACIÓN EN DERECHO DEL MEDIO AMBIENTE",null,null,14,null,null,11,null,null,14,null,null,8,null,null,5,null,null,12,null,null,5,null,null,1,null,null,4,null,null,1,null,null,3]
[null,null,17836,"ESPECIALIZACIÓN EN DERECHO DISCIPLINARIO"]
[null,null,55049,"ESPECIALIZACIÓN EN DERECHO ECONÓMICO INTERNACIONAL",null,null,null,null,null,null,null,null,null,null,null,null,null,null,null,null,null,null,null,null,null,null,null,null,null,null,null,null,null,null,null,null,{"$f":"SUM(G24:AK24)","v":78}]
[null,null,3893,"ESPECIALIZACIÓN EN DERECHO FINANCIERO Y BURSÁTIL",null,null,null,null,null,null,null,null,null,null,null,null,null,null,null,null,null,null,null,null,null,null,null,null,null,null,null,null,null,null,null,null,{"$f":"+AK26+D59","v":124}]
[null,null,52628,"ESPECIALIZACIÓN EN DERECHO INFORMÁTICO Y DE LAS NUEVAS TECNOLOGÍAS"]
[null,null,1125,"ESPECIALIZACIÓN EN DERECHO LABORAL Y RELACIONES INDUSTRIALES"]
[null,null,52523,"ESPECIALIZACIÓN EN DERECHO MÉDICO"]
[null,null,11206,"ESPECIALIZACIÓN EN DERECHO MINERO ENERGÉTICO"]
[null,null,53021,"ESPECIALIZACIÓN EN DERECHO MINERO Y PETROLERO"]
[null,null,105166,"ESPECIALIZACIÓN EN DERECHO PARLAMENTARIO Y PRÁCTICA DE LA DEMOCRACIA"]
[null,null,11205,"ESPECIALIZACIÓN EN DERECHO PROCESAL CIVIL "]
[null,null,51850,"ESPECIALIZACIÓN EN DERECHO PROCESAL PENAL"]
[null,null,12045,"ESPECIALIZACIÓN EN DERECHO PÚBLICO"]
[null,null,11309,"ESPECIALIZACIÓN EN DERECHO TRIBUTARIO"]
[null,null,104095,"ESPECIALIZACIÓN EN DERECHO TRIBUTARIO CORPORATIVO "]
[null,null,51849,"ESPECIALIZACIÓN EN DERECHO TRIBUTARIO INTERNACIONAL"]
[null,null,11210,"ESPECIALIZACIÓN EN DERECHO Y NUEVAS TECNOLOGÍAS SOBRE LA VIDA"]
[null,null,7799,"ESPECIALIZACIÓN EN DERECHOS HUMANOS Y DERECHO INTERNACIONAL HUMANITARIO "]
[null,null,104815,"ESPECIALIZACIÓN EN GESTIÓN DE CIUDAD Y TERRITORIO"]
[null,null,null,"ESPECIALIZACIÓN EN INSPECCIÓN, VIGILANCIA Y CONTROL"]
[null,null,102558,"ESPECIALIZACIÓN EN NUEVAS TECNOLOGÍAS, INNOVACIÓN Y GESTIÓN DE CIUDADES"]
[null,null,105881,"ESPECIALIZACIÓN EN PENSIONES Y RIESGOS LABORALES"]
[null,null,4367,"ESPECIALIZACIÓN EN PROPIEDAD INDUSTRIAL, DERECHOS DE AUTOR Y NUEVAS TECNOLOGíAS"]
[null,null,53214,"ESPECIALIZACIÓN EN REGULACIÓN DE ENERGÍA ELÉCTRICA Y GAS"]
[null,null,107608,"ESPECIALIZACIÓN EN REGULACIÓN Y GESTIÓN EN TIC, TELECOMUNICACIONES Y EL ECOSISTEMA DIGITAL"]
[null,null,4649,"ESPECIALIZACIÓN EN RESPONSABILIDAD Y DAÑO RESARCIBLE"]
[null,null,12043,"ESPECIALIZACIÓN EN SEGURIDAD SOCIAL"]
[null,null,4248,"ESPECIALIZACIÓN EN SEGUROS"]
[null,null,8248,"ESPECIALIZACIÓN EN SERVICIOS PÚBLICOS "]
[null,null,105418,"ESPECIALIZACIÓN EN VALUACIÓN DE ACTIVOS Y PROPIEDAD INTELECTUAL"]
[null,null,4500,"ESPECIALIZACIÓN INTERNACIONAL EN DERECHO DEL TRANSPORTE"]
[]
[]
[]
[]
[null,null,null,46]